[Event "Titled Tuesday Blitz May 23 Late 2023"]
[White "Bogaudinov, Rushan"]
[Black "Melikyan, Gnel"]
[WhiteFideId "4129288"]
[BlackFideId "54109990"]
[WhiteElo "1941"]
[BlackElo "2138"]
[Result "0-1"]
[Round "03"]
[TimeControl "180+2"]
[Date "2023.05.23"]
[WhiteClock "0:00:00"]
[BlackClock "0:00:12"]

1. e4 {[%clk 0:02:59]}  c5 {[%clk 0:02:59]} 2. Nf3 {[%clk 0:02:59]}  Nc6 {[%clk 0:02:55]} 3. Bb5 {[%clk 0:02:58]}  g6 {[%clk 0:02:56]} 4. O-O {[%clk 0:02:56]}  Bg7 {[%clk 0:02:56]} 5. c3 {[%clk 0:02:55]}  Nf6 {[%clk 0:02:56]} 6. Re1 {[%clk 0:02:52]}  O-O {[%clk 0:02:55]} 7. d4 {[%clk 0:02:47]}  d5 {[%clk 0:02:41]} 8. exd5 {[%clk 0:02:38]}  Qxd5 {[%clk 0:02:39]} 9. c4 {[%clk 0:02:34]}  Qh5 {[%clk 0:02:34]} 10. Bxc6 {[%clk 0:02:25]}  bxc6 {[%clk 0:02:34]} 11. Ne5 {[%clk 0:02:25]}  Qxd1 {[%clk 0:02:32]} 12. Rxd1 {[%clk 0:02:25]}  cxd4 {[%clk 0:02:11]} 13. Nxc6 {[%clk 0:02:23]}  Re8 {[%clk 0:02:01]} 14. Rxd4 {[%clk 0:02:02]}  Bb7 {[%clk 0:01:50]} 15. Nb4 {[%clk 0:01:53]}  Ne4 {[%clk 0:01:44]} 16. Rd1 {[%clk 0:01:32]}  Red8 {[%clk 0:01:39]} 17. Rf1 {[%clk 0:01:31]}  a5 {[%clk 0:01:37]} 18. Nd5 {[%clk 0:01:26]}  Bxd5 {[%clk 0:01:30]} 19. cxd5 {[%clk 0:01:26]}  Rac8 {[%clk 0:01:25]} 20. Nc3 {[%clk 0:01:22]}  Nxc3 {[%clk 0:01:22]} 21. bxc3 {[%clk 0:01:22]}  Bxc3 {[%clk 0:01:22]} 22. Rb1 {[%clk 0:01:23]}  Rxd5 {[%clk 0:01:22]} 23. Be3 {[%clk 0:01:19]}  Bb4 {[%clk 0:01:12]} 24. Rb3 {[%clk 0:01:16]}  Rc3 {[%clk 0:01:09]} 25. Rxc3 {[%clk 0:01:11]}  Bxc3 {[%clk 0:01:10]} 26. g3 {[%clk 0:01:11]}  Kg7 {[%clk 0:01:07]} 27. Rc1 {[%clk 0:01:08]}  Bb4 {[%clk 0:01:04]} 28. Kg2 {[%clk 0:01:05]}  Rd7 {[%clk 0:00:55]} 29. h4 {[%clk 0:01:04]}  h5 {[%clk 0:00:47]} 30. Kf3 {[%clk 0:01:03]}  Rd3 {[%clk 0:00:44]} 31. Ke2 {[%clk 0:01:03]}  Ra3 {[%clk 0:00:37]} 32. Rc2 {[%clk 0:01:02]}  e5 {[%clk 0:00:33]} 33. Bc1 {[%clk 0:00:50]}  Ra4 {[%clk 0:00:32]} 34. Kd3 {[%clk 0:00:42]}  Be7 {[%clk 0:00:27]} 35. Bb2 {[%clk 0:00:40]}  f6 {[%clk 0:00:23]} 36. Bc3 {[%clk 0:00:39]}  Kf7 {[%clk 0:00:21]} 37. Rb2 {[%clk 0:00:32]}  Ke6 {[%clk 0:00:20]} 38. Rb6+ {[%clk 0:00:31]}  Kf5 {[%clk 0:00:20]} 39. Rb7 {[%clk 0:00:26]}  Bc5 {[%clk 0:00:20]} 40. f3 {[%clk 0:00:26]}  Rxa2 {[%clk 0:00:20]} 41. Rb5 {[%clk 0:00:26]}  Bb4 {[%clk 0:00:18]} 42. Bxb4 {[%clk 0:00:26]}  axb4 {[%clk 0:00:19]} 43. Rxb4 {[%clk 0:00:25]}  Rg2 {[%clk 0:00:19]} 44. Ke3 {[%clk 0:00:20]}  Rxg3 {[%clk 0:00:20]} 45. Rc4 {[%clk 0:00:19]}  g5 {[%clk 0:00:18]} 46. hxg5 {[%clk 0:00:17]}  fxg5 {[%clk 0:00:19]} 47. Rc8 {[%clk 0:00:17]}  Rg2 {[%clk 0:00:16]} 48. Rf8+ {[%clk 0:00:16]}  Kg6 {[%clk 0:00:17]} 49. Rg8+ {[%clk 0:00:16]}  Kf7 {[%clk 0:00:17]} 50. Rh8 {[%clk 0:00:13]}  h4 {[%clk 0:00:18]} 51. Rh6 {[%clk 0:00:12]}  Kg7 {[%clk 0:00:17]} 52. Re6 {[%clk 0:00:12]}  h3 {[%clk 0:00:17]} 53. Rxe5 {[%clk 0:00:12]}  h2 {[%clk 0:00:17]} 54. Re7+ {[%clk 0:00:11]}  Kh6 {[%clk 0:00:14]} 55. Re6+ {[%clk 0:00:11]}  Kh5 {[%clk 0:00:07]} 56. Re8 {[%clk 0:00:11]}  Kh4 {[%clk 0:00:08]} 57. Rh8+ {[%clk 0:00:10]}  Kg3 {[%clk 0:00:08]} 58. Rh5 {[%clk 0:00:07]}  g4 {[%clk 0:00:09]} 59. fxg4 {[%clk 0:00:07]}  Rg1 {[%clk 0:00:07]} 60. g5 {[%clk 0:00:06]}  h1=Q {[%clk 0:00:07]} 61. Rxh1 {[%clk 0:00:05]}  Rxh1 {[%clk 0:00:08]} 62. Ke4 {[%clk 0:00:04]}  Kg4 {[%clk 0:00:09]} 63. g6 {[%clk 0:00:02]}  Rh6 {[%clk 0:00:08]} 64. g7 {[%clk 0:00:03]}  Rg6 {[%clk 0:00:08]} 65. Ke5 {[%clk 0:00:02]}  Rxg7 {[%clk 0:00:08]} 66. Kf6 {[%clk 0:00:03]}  Rg5 {[%clk 0:00:09]} 67. Ke6 {[%clk 0:00:03]}  Rf5 {[%clk 0:00:10]} 68. Kd6 {[%clk 0:00:03]}  Kf4 {[%clk 0:00:10]} 69. Ke6 {[%clk 0:00:04]}  Re5+ {[%clk 0:00:11]} 70. Kd6 {[%clk 0:00:04]}  Ke4 {[%clk 0:00:11]} 71. Kc6 {[%clk 0:00:05]}  Rd5 {[%clk 0:00:12]} 72. Kc7 {[%clk 0:00:05]}  Kd4 {[%clk 0:00:11]} 73. Kc6 {[%clk 0:00:06]}  Kc4 {[%clk 0:00:11]} 74. Kc7 {[%clk 0:00:06]}  Kb5 {[%clk 0:00:12]} 75. Kc8 {[%clk 0:00:00]}  Kb6 {[%clk 0:00:12]} 0-1


[Site "https://www.chess.com"]

[Event "Titled Tuesday Blitz May 23 Late 2023"]
[White "FuenfgegenWilly"]
[Black "Arabidze, Meri"]
[BlackFideId "13604040"]
[WhiteElo "2362"]
[BlackElo "2405"]
[Result "0-1"]
[Round "03"]
[TimeControl "180+2"]
[Date "2023.05.23"]
[WhiteClock "0:00:46"]
[BlackClock "0:00:14"]

1. Nf3 {[%clk 0:03:00]}  Nf6 {[%clk 0:02:58]} 2. e3 {[%clk 0:03:00]}  b6 {[%clk 0:02:56]} 3. b3 {[%clk 0:02:59]}  Bb7 {[%clk 0:02:56]} 4. Bb2 {[%clk 0:03:00]}  g6 {[%clk 0:02:56]} 5. c4 {[%clk 0:03:00]}  Bg7 {[%clk 0:02:57]} 6. g3 {[%clk 0:02:59]}  d6 {[%clk 0:02:52]} 7. Bg2 {[%clk 0:02:59]}  e5 {[%clk 0:02:51]} 8. O-O {[%clk 0:02:59]}  O-O {[%clk 0:02:49]} 9. d3 {[%clk 0:02:59]}  Qc8 {[%clk 0:02:42]} 10. Nbd2 {[%clk 0:02:59]}  Nbd7 {[%clk 0:02:42]} 11. Nh4 {[%clk 0:02:45]}  Bxg2 {[%clk 0:02:41]} 12. Nxg2 {[%clk 0:02:46]}  Re8 {[%clk 0:02:39]} 13. b4 {[%clk 0:02:44]}  Qb7 {[%clk 0:02:32]} 14. e4 {[%clk 0:02:44]}  a5 {[%clk 0:02:23]} 15. a3 {[%clk 0:02:44]}  b5 {[%clk 0:02:23]} 16. Qb3 {[%clk 0:02:38]}  axb4 {[%clk 0:01:57]} 17. Qxb4 {[%clk 0:02:37]}  Rab8 {[%clk 0:01:52]} 18. Bc3 {[%clk 0:02:34]}  Nc5 {[%clk 0:01:49]} 19. cxb5 {[%clk 0:02:05]}  Qxb5 {[%clk 0:01:44]} 20. Qxb5 {[%clk 0:01:56]}  Rxb5 {[%clk 0:01:45]} 21. a4 {[%clk 0:01:56]}  Rb7 {[%clk 0:01:41]} 22. Ne3 {[%clk 0:01:52]}  Nxd3 {[%clk 0:01:38]} 23. a5 {[%clk 0:01:52]}  Nc5 {[%clk 0:01:36]} 24. Nec4 {[%clk 0:01:49]}  Nfxe4 {[%clk 0:01:34]} 25. Nxe4 {[%clk 0:01:48]}  Nxe4 {[%clk 0:01:35]} 26. a6 {[%clk 0:01:47]}  Ra7 {[%clk 0:01:35]} 27. Bd2 {[%clk 0:01:41]}  Nxd2 {[%clk 0:01:33]} 28. Nxd2 {[%clk 0:01:41]}  Rea8 {[%clk 0:01:34]} 29. Rfc1 {[%clk 0:01:41]}  c5 {[%clk 0:01:07]} 30. Nc4 {[%clk 0:01:41]}  Rxa6 {[%clk 0:01:06]} 31. Rab1 {[%clk 0:01:41]}  d5 {[%clk 0:00:49]} 32. Nb6 {[%clk 0:01:39]}  Rd8 {[%clk 0:00:49]} 33. Rxc5 {[%clk 0:01:39]}  Rb8 {[%clk 0:00:40]} 34. Rcb5 {[%clk 0:01:36]}  d4 {[%clk 0:00:40]} 35. Nc4 {[%clk 0:01:20]}  Rxb5 {[%clk 0:00:40]} 36. Rxb5 {[%clk 0:01:21]}  f6 {[%clk 0:00:31]} 37. Rb8+ {[%clk 0:01:13]}  Bf8 {[%clk 0:00:31]} 38. Kg2 {[%clk 0:01:10]}  Kf7 {[%clk 0:00:31]} 39. Nb6 {[%clk 0:01:07]}  Ra7 {[%clk 0:00:24]} 40. h4 {[%clk 0:01:06]}  h5 {[%clk 0:00:23]} 41. Kf3 {[%clk 0:01:06]}  Re7 {[%clk 0:00:20]} 42. Rd8 {[%clk 0:01:00]}  e4+ {[%clk 0:00:20]} 43. Ke2 {[%clk 0:01:01]}  d3+ {[%clk 0:00:20]} 44. Ke3 {[%clk 0:00:58]}  Bh6+ {[%clk 0:00:20]} 45. f4 {[%clk 0:00:58]}  exf3+ {[%clk 0:00:19]} 46. Kxf3 {[%clk 0:00:58]}  d2 {[%clk 0:00:20]} 47. Nc4 {[%clk 0:00:57]}  Re1 {[%clk 0:00:18]} 48. Nxd2 {[%clk 0:00:51]}  Rd1 {[%clk 0:00:18]} 49. Rd7+ {[%clk 0:00:51]}  Ke6 {[%clk 0:00:16]} 50. Rh7 {[%clk 0:00:51]}  Bxd2 {[%clk 0:00:15]} 51. Ke2 {[%clk 0:00:52]}  Rg1 {[%clk 0:00:16]} 52. Kxd2 {[%clk 0:00:51]}  Rxg3 {[%clk 0:00:16]} 53. Rg7 {[%clk 0:00:47]}  Kf5 {[%clk 0:00:16]} 54. Ra7 {[%clk 0:00:47]}  Kg4 {[%clk 0:00:15]} 55. Ra5 {[%clk 0:00:48]}  Kxh4 {[%clk 0:00:14]} 56. Ke2 {[%clk 0:00:49]}  f5 {[%clk 0:00:14]} 57. Kf2 {[%clk 0:00:49]}  f4 {[%clk 0:00:13]} 58. Ra6 {[%clk 0:00:50]}  g5 {[%clk 0:00:14]} 59. Ra1 {[%clk 0:00:51]}  Kg4 {[%clk 0:00:14]} 60. Rh1 {[%clk 0:00:51]}  h4 {[%clk 0:00:14]} 61. Ra1 {[%clk 0:00:52]}  h3 {[%clk 0:00:14]} 62. Rh1 {[%clk 0:00:51]}  Rg2+ {[%clk 0:00:14]} 63. Kf1 {[%clk 0:00:52]}  Ra2 {[%clk 0:00:13]} 64. Rg1+ {[%clk 0:00:47]}  Kf3 {[%clk 0:00:14]} 65. Ke1 {[%clk 0:00:46]}  Ra1+ {[%clk 0:00:14]} 0-1


[Site "https://www.chess.com"]

[Event "Titled Tuesday Blitz May 23 Late 2023"]
[White "Onslow, Alfie"]
[Black "Ambartsumova, Karina"]
[WhiteFideId "436976"]
[BlackFideId "4166299"]
[WhiteElo "2114"]
[BlackElo "2240"]
[Result "0-1"]
[Round "03"]
[TimeControl "180+2"]
[Date "2023.05.23"]
[WhiteClock "0:00:13"]
[BlackClock "0:01:01"]

1. Nf3 {[%clk 0:02:58]}  Nf6 {[%clk 0:02:59]} 2. c4 {[%clk 0:02:55]}  d6 {[%clk 0:03:00]} 3. d4 {[%clk 0:02:50]}  g6 {[%clk 0:02:59]} 4. b3 {[%clk 0:02:50]}  Bg7 {[%clk 0:02:59]} 5. Bb2 {[%clk 0:02:50]}  O-O {[%clk 0:02:59]} 6. g3 {[%clk 0:02:50]}  c5 {[%clk 0:02:59]} 7. d5 {[%clk 0:02:50]}  a6 {[%clk 0:02:39]} 8. Bg2 {[%clk 0:02:50]}  b6 {[%clk 0:02:39]} 9. O-O {[%clk 0:02:45]}  b5 {[%clk 0:02:39]} 10. Nbd2 {[%clk 0:02:40]}  Bf5 {[%clk 0:02:34]} 11. Ne1 {[%clk 0:02:38]}  Qc8 {[%clk 0:02:32]} 12. e4 {[%clk 0:02:34]}  Bh3 {[%clk 0:02:31]} 13. Nd3 {[%clk 0:02:32]}  Bxg2 {[%clk 0:02:26]} 14. Kxg2 {[%clk 0:02:32]}  e5 {[%clk 0:02:26]} 15. dxe6 {[%clk 0:02:18]}  fxe6 {[%clk 0:02:23]} 16. Qe2 {[%clk 0:02:08]}  Nc6 {[%clk 0:02:22]} 17. Nf3 {[%clk 0:02:04]}  e5 {[%clk 0:02:21]} 18. Rac1 {[%clk 0:01:40]}  Qb7 {[%clk 0:02:21]} 19. Rfe1 {[%clk 0:01:34]}  Rae8 {[%clk 0:02:21]} 20. Qd2 {[%clk 0:01:28]}  Nd4 {[%clk 0:01:30]} 21. Nxd4 {[%clk 0:01:26]}  exd4 {[%clk 0:01:29]} 22. f3 {[%clk 0:01:26]}  Qf7 {[%clk 0:01:27]} 23. Rf1 {[%clk 0:01:13]}  h5 {[%clk 0:01:26]} 24. cxb5 {[%clk 0:01:00]}  axb5 {[%clk 0:01:27]} 25. e5 {[%clk 0:01:00]}  Nd5 {[%clk 0:01:24]} 26. exd6 {[%clk 0:00:56]}  Ne3+ {[%clk 0:01:23]} 27. Kg1 {[%clk 0:00:56]}  Nxf1 {[%clk 0:01:23]} 28. Rxf1 {[%clk 0:00:55]}  c4 {[%clk 0:01:23]} 29. Nf4 {[%clk 0:00:45]}  c3 {[%clk 0:01:20]} 30. Qd3 {[%clk 0:00:43]}  cxb2 {[%clk 0:01:18]} 31. Nxg6 {[%clk 0:00:43]}  Qf5 {[%clk 0:01:14]} 32. Ne7+ {[%clk 0:00:33]}  Rxe7 {[%clk 0:01:13]} 33. Qxf5 {[%clk 0:00:32]}  Rxf5 {[%clk 0:01:14]} 34. dxe7 {[%clk 0:00:33]}  Kf7 {[%clk 0:01:13]} 35. Kf2 {[%clk 0:00:23]}  Rc5 {[%clk 0:01:04]} 36. Re1 {[%clk 0:00:18]}  Ke8 {[%clk 0:01:03]} 37. Ke2 {[%clk 0:00:13]}  Rc1 {[%clk 0:01:01]} 0-1


[Site "https://www.chess.com"]

[Event "Titled Tuesday Blitz May 23 Late 2023"]
[White "Filgueira, Hernan"]
[Black "Celestino, Rafael Teixeira"]
[WhiteFideId "101770"]
[BlackFideId "2108925"]
[WhiteElo "2363"]
[BlackElo "2353"]
[Result "1-0"]
[Round "03"]
[TimeControl "180+2"]
[Date "2023.05.23"]
[WhiteClock "0:01:02"]
[BlackClock "0:00:03"]

1. c4 {[%clk 0:02:58]}  e5 {[%clk 0:02:59]} 2. Nc3 {[%clk 0:02:57]}  Nc6 {[%clk 0:03:00]} 3. Nf3 {[%clk 0:02:57]}  Nf6 {[%clk 0:03:00]} 4. a4 {[%clk 0:02:55]}  Bb4 {[%clk 0:02:53]} 5. Nd5 {[%clk 0:02:54]}  Ba5 {[%clk 0:02:51]} 6. Rb1 {[%clk 0:02:46]}  e4 {[%clk 0:02:32]} 7. Ng1 {[%clk 0:02:45]}  Nxd5 {[%clk 0:02:22]} 8. cxd5 {[%clk 0:02:45]}  Ne5 {[%clk 0:02:22]} 9. b4 {[%clk 0:02:39]}  Bb6 {[%clk 0:02:20]} 10. a5 {[%clk 0:02:39]}  Bxf2+ {[%clk 0:02:15]} 11. Kxf2 {[%clk 0:02:38]}  Qf6+ {[%clk 0:02:11]} 12. Nf3 {[%clk 0:02:35]}  Ng4+ {[%clk 0:01:39]} 13. Kg1 {[%clk 0:02:18]}  exf3 {[%clk 0:01:34]} 14. gxf3 {[%clk 0:02:18]}  Qd4+ {[%clk 0:01:29]} 15. e3 {[%clk 0:02:10]}  Nxe3 {[%clk 0:01:23]} 16. Qe2 {[%clk 0:02:09]}  O-O {[%clk 0:01:00]} 17. dxe3 {[%clk 0:02:00]}  Qf6 {[%clk 0:01:00]} 18. e4 {[%clk 0:01:55]}  d6 {[%clk 0:01:00]} 19. Bb2 {[%clk 0:01:54]}  Qf4 {[%clk 0:00:57]} 20. Qf2 {[%clk 0:01:50]}  f5 {[%clk 0:00:48]} 21. Re1 {[%clk 0:01:41]}  fxe4 {[%clk 0:00:26]} 22. Qg3 {[%clk 0:01:40]}  Qxg3+ {[%clk 0:00:24]} 23. hxg3 {[%clk 0:01:39]}  exf3 {[%clk 0:00:25]} 24. Re7 {[%clk 0:01:28]}  Rf7 {[%clk 0:00:19]} 25. Rxf7 {[%clk 0:01:25]}  Kxf7 {[%clk 0:00:20]} 26. Rxh7 {[%clk 0:01:25]}  b6 {[%clk 0:00:12]} 27. Rxg7+ {[%clk 0:01:25]}  Kf8 {[%clk 0:00:13]} 28. Rxc7 {[%clk 0:01:22]}  Bg4 {[%clk 0:00:12]} 29. a6 {[%clk 0:01:17]}  Re8 {[%clk 0:00:12]} 30. Kf2 {[%clk 0:01:16]}  Re4 {[%clk 0:00:11]} 31. Bc3 {[%clk 0:01:14]}  Bh5 {[%clk 0:00:06]} 32. Bd3 {[%clk 0:01:12]}  Re7 {[%clk 0:00:05]} 33. Rxe7 {[%clk 0:01:09]}  Kxe7 {[%clk 0:00:06]} 34. Be4 {[%clk 0:01:07]}  Kf7 {[%clk 0:00:05]} 35. Bd4 {[%clk 0:01:05]}  Bg6 {[%clk 0:00:06]} 36. Bxf3 {[%clk 0:01:03]}  Bd3 {[%clk 0:00:06]} 37. Be2 {[%clk 0:01:03]}  Bc2 {[%clk 0:00:03]} 38. Bxb6 {[%clk 0:01:02]} 1-0


[Site "https://www.chess.com"]

[Event "Titled Tuesday Blitz May 23 Late 2023"]
[White "Gubajdullin, Alexei"]
[Black "Szente Varga, Fruzsina"]
[WhiteFideId "4141202"]
[BlackFideId "712264"]
[WhiteElo "2279"]
[BlackElo "1994"]
[Result "1-0"]
[Round "03"]
[TimeControl "180+2"]
[Date "2023.05.23"]
[WhiteClock "0:00:15"]
[BlackClock "0:00:01"]

1. d4 {[%clk 0:02:59]}  Nf6 {[%clk 0:02:59]} 2. Nf3 {[%clk 0:02:59]}  g6 {[%clk 0:02:59]} 3. Bf4 {[%clk 0:02:59]}  Bg7 {[%clk 0:02:58]} 4. e3 {[%clk 0:02:59]}  d6 {[%clk 0:02:58]} 5. Be2 {[%clk 0:02:59]}  O-O {[%clk 0:02:58]} 6. O-O {[%clk 0:02:59]}  c5 {[%clk 0:02:54]} 7. c3 {[%clk 0:02:56]}  Nc6 {[%clk 0:02:52]} 8. dxc5 {[%clk 0:02:52]}  dxc5 {[%clk 0:02:52]} 9. Qxd8 {[%clk 0:02:51]}  Rxd8 {[%clk 0:02:53]} 10. a4 {[%clk 0:02:44]}  Bf5 {[%clk 0:02:48]} 11. Na3 {[%clk 0:02:42]}  Nd5 {[%clk 0:02:26]} 12. Bg3 {[%clk 0:02:39]}  e5 {[%clk 0:02:24]} 13. Rfd1 {[%clk 0:02:29]}  e4 {[%clk 0:02:20]} 14. Ne1 {[%clk 0:02:16]}  Rd7 {[%clk 0:01:45]} 15. Nc4 {[%clk 0:02:10]}  Bxc3 {[%clk 0:01:35]} 16. Rxd5 {[%clk 0:02:05]}  Rxd5 {[%clk 0:01:30]} 17. bxc3 {[%clk 0:02:05]}  Rad8 {[%clk 0:01:28]} 18. a5 {[%clk 0:02:01]}  Be6 {[%clk 0:01:21]} 19. Kf1 {[%clk 0:02:00]}  f5 {[%clk 0:01:20]} 20. Rb1 {[%clk 0:01:57]}  R5d7 {[%clk 0:01:19]} 21. Ne5 {[%clk 0:01:52]}  Nxe5 {[%clk 0:01:08]} 22. Bxe5 {[%clk 0:01:52]}  Bd5 {[%clk 0:00:59]} 23. c4 {[%clk 0:01:34]}  Bc6 {[%clk 0:00:58]} 24. Bc3 {[%clk 0:01:33]}  Kf7 {[%clk 0:00:54]} 25. Nc2 {[%clk 0:01:31]}  Ke6 {[%clk 0:00:53]} 26. Ke1 {[%clk 0:01:26]}  g5 {[%clk 0:00:40]} 27. g3 {[%clk 0:01:20]}  Rb8 {[%clk 0:00:38]} 28. Na3 {[%clk 0:01:19]}  b6 {[%clk 0:00:37]} 29. a6 {[%clk 0:01:19]}  Rbd8 {[%clk 0:00:33]} 30. Nb5 {[%clk 0:01:14]}  Rf7 {[%clk 0:00:32]} 31. Rd1 {[%clk 0:01:10]}  Rxd1+ {[%clk 0:00:31]} 32. Bxd1 {[%clk 0:01:10]}  Bxb5 {[%clk 0:00:31]} 33. cxb5 {[%clk 0:01:10]}  Kd5 {[%clk 0:00:31]} 34. Be2 {[%clk 0:01:01]}  c4 {[%clk 0:00:31]} 35. Bd4 {[%clk 0:01:00]}  f4 {[%clk 0:00:31]} 36. Kd2 {[%clk 0:00:55]}  fxg3 {[%clk 0:00:20]} 37. fxg3 {[%clk 0:00:55]}  Rc7 {[%clk 0:00:18]} 38. Kc3 {[%clk 0:00:54]}  Rc8 {[%clk 0:00:18]} 39. g4 {[%clk 0:00:50]}  Rc7 {[%clk 0:00:18]} 40. h3 {[%clk 0:00:49]}  Rc8 {[%clk 0:00:18]} 41. Kb4 {[%clk 0:00:40]}  c3 {[%clk 0:00:17]} 42. Bxc3 {[%clk 0:00:40]}  Rf8 {[%clk 0:00:16]} 43. Bc4+ {[%clk 0:00:38]}  Kd6 {[%clk 0:00:16]} 44. Bd4 {[%clk 0:00:32]}  Rf3 {[%clk 0:00:15]} 45. Bb3 {[%clk 0:00:29]}  Kc7 {[%clk 0:00:13]} 46. Bc2 {[%clk 0:00:29]}  Rxh3 {[%clk 0:00:12]} 47. Bxe4 {[%clk 0:00:29]}  Rg3 {[%clk 0:00:12]} 48. Be5+ {[%clk 0:00:28]}  Kc8 {[%clk 0:00:11]} 49. Bxh7 {[%clk 0:00:28]}  Rxg4+ {[%clk 0:00:10]} 50. Kc3 {[%clk 0:00:26]}  Rg1 {[%clk 0:00:11]} 51. Bf5+ {[%clk 0:00:24]}  Kd8 {[%clk 0:00:11]} 52. Bb8 {[%clk 0:00:24]}  Rc1+ {[%clk 0:00:11]} 53. Kd4 {[%clk 0:00:23]}  Rc5 {[%clk 0:00:11]} 54. Bd3 {[%clk 0:00:22]}  Kc8 {[%clk 0:00:10]} 55. Bg3 {[%clk 0:00:21]}  Rc1 {[%clk 0:00:09]} 56. e4 {[%clk 0:00:19]}  Rg1 {[%clk 0:00:07]} 57. Bf2 {[%clk 0:00:19]}  Rg2 {[%clk 0:00:07]} 58. Ke3 {[%clk 0:00:19]}  g4 {[%clk 0:00:06]} 59. Be1 {[%clk 0:00:18]}  Rg1 {[%clk 0:00:06]} 60. Bf2 {[%clk 0:00:18]}  Ra1 {[%clk 0:00:05]} 61. Kf4 {[%clk 0:00:17]}  Ra3 {[%clk 0:00:06]} 62. Bc4 {[%clk 0:00:17]}  Rc3 {[%clk 0:00:06]} 63. Be6+ {[%clk 0:00:16]}  Kc7 {[%clk 0:00:06]} 64. Bg3 {[%clk 0:00:16]}  Rc5 {[%clk 0:00:05]} 65. Kxg4+ {[%clk 0:00:15]}  Kd8 {[%clk 0:00:05]} 66. Bh4+ {[%clk 0:00:15]}  Ke8 {[%clk 0:00:05]} 67. Bd5 {[%clk 0:00:15]}  Kd7 {[%clk 0:00:04]} 68. Bc6+ {[%clk 0:00:15]}  Kc7 {[%clk 0:00:05]} 69. Bg3+ {[%clk 0:00:15]}  Kd8 {[%clk 0:00:05]} 70. e5 {[%clk 0:00:15]}  Rc4+ {[%clk 0:00:04]} 71. Kf5 {[%clk 0:00:15]}  Ke7 {[%clk 0:00:05]} 72. Bf4 {[%clk 0:00:15]}  Rd4 {[%clk 0:00:04]} 73. Bg5+ {[%clk 0:00:15]}  Kf8 {[%clk 0:00:01]} 74. e6 {[%clk 0:00:15]} 1-0


[Site "https://www.chess.com"]

[Event "Titled Tuesday Blitz May 23 Late 2023"]
[White "Lacasa Diaz, Jose Antonio"]
[Black "Veiga, Jose Francisco R P Neves"]
[WhiteFideId "2203375"]
[BlackFideId "1930087"]
[WhiteElo "2338"]
[BlackElo "2320"]
[Result "0-1"]
[Round "03"]
[TimeControl "180+2"]
[Date "2023.05.23"]
[WhiteClock "0:00:00"]
[BlackClock "0:00:33"]

1. d4 {[%clk 0:03:00]}  Nf6 {[%clk 0:02:57]} 2. Bf4 {[%clk 0:03:00]}  e6 {[%clk 0:02:57]} 3. e3 {[%clk 0:02:50]}  c5 {[%clk 0:02:52]} 4. c3 {[%clk 0:02:50]}  b6 {[%clk 0:02:50]} 5. Nf3 {[%clk 0:02:49]}  Bb7 {[%clk 0:02:51]} 6. Nbd2 {[%clk 0:02:48]}  Be7 {[%clk 0:02:51]} 7. Bd3 {[%clk 0:02:49]}  Nh5 {[%clk 0:02:51]} 8. Bg3 {[%clk 0:02:48]}  Nc6 {[%clk 0:02:48]} 9. Nc4 {[%clk 0:02:41]}  d6 {[%clk 0:02:45]} 10. Qe2 {[%clk 0:02:27]}  O-O {[%clk 0:02:43]} 11. Rd1 {[%clk 0:02:22]}  b5 {[%clk 0:02:40]} 12. Ncd2 {[%clk 0:02:22]}  Qb6 {[%clk 0:02:40]} 13. dxc5 {[%clk 0:02:09]}  dxc5 {[%clk 0:02:36]} 14. Bb1 {[%clk 0:01:56]}  Rfd8 {[%clk 0:02:31]} 15. O-O {[%clk 0:01:46]}  Nxg3 {[%clk 0:02:30]} 16. hxg3 {[%clk 0:01:47]}  g6 {[%clk 0:02:31]} 17. e4 {[%clk 0:01:37]}  Rd7 {[%clk 0:02:25]} 18. Nc4 {[%clk 0:01:34]}  Qd8 {[%clk 0:02:20]} 19. Rxd7 {[%clk 0:01:26]}  Qxd7 {[%clk 0:02:20]} 20. Rd1 {[%clk 0:01:25]}  Qc7 {[%clk 0:02:20]} 21. Na3 {[%clk 0:01:20]}  a6 {[%clk 0:02:20]} 22. Nc2 {[%clk 0:01:12]}  Rd8 {[%clk 0:02:19]} 23. Ne3 {[%clk 0:01:12]}  c4 {[%clk 0:02:18]} 24. Ng4 {[%clk 0:01:07]}  h5 {[%clk 0:02:17]} 25. Ne3 {[%clk 0:01:03]}  Bc5 {[%clk 0:02:17]} 26. Nc2 {[%clk 0:01:00]}  Kg7 {[%clk 0:02:12]} 27. Ncd4 {[%clk 0:00:52]}  Qb6 {[%clk 0:01:53]} 28. Nxc6 {[%clk 0:00:46]}  Bxc6 {[%clk 0:01:47]} 29. Bc2 {[%clk 0:00:42]}  Rxd1+ {[%clk 0:01:34]} 30. Bxd1 {[%clk 0:00:39]}  Qc7 {[%clk 0:01:34]} 31. Kf1 {[%clk 0:00:33]}  a5 {[%clk 0:01:29]} 32. a3 {[%clk 0:00:31]}  Qd8 {[%clk 0:01:23]} 33. Bc2 {[%clk 0:00:30]}  g5 {[%clk 0:01:21]} 34. Qd2 {[%clk 0:00:27]}  Qxd2 {[%clk 0:01:21]} 35. Nxd2 {[%clk 0:00:28]}  Kf6 {[%clk 0:01:20]} 36. f4 {[%clk 0:00:20]}  g4 {[%clk 0:01:16]} 37. e5+ {[%clk 0:00:18]}  Ke7 {[%clk 0:01:16]} 38. a4 {[%clk 0:00:17]}  Be3 {[%clk 0:01:02]} 39. axb5 {[%clk 0:00:15]}  Bxb5 {[%clk 0:01:03]} 40. Ne4 {[%clk 0:00:15]}  Bc1 {[%clk 0:01:01]} 41. Ke2 {[%clk 0:00:11]}  Bxb2 {[%clk 0:01:01]} 42. Kd2 {[%clk 0:00:11]}  a4 {[%clk 0:01:01]} 43. Bb1 {[%clk 0:00:10]}  Bc6 {[%clk 0:00:57]} 44. Nf6 {[%clk 0:00:09]}  Bxg2 {[%clk 0:00:54]} 45. Nxh5 {[%clk 0:00:09]}  Ba3 {[%clk 0:00:51]} 46. Ba2 {[%clk 0:00:09]}  Bc5 {[%clk 0:00:49]} 47. Nf6 {[%clk 0:00:09]}  Bf2 {[%clk 0:00:47]} 48. Nxg4 {[%clk 0:00:09]}  Bxg3 {[%clk 0:00:47]} 49. Ke3 {[%clk 0:00:10]}  Bd5 {[%clk 0:00:44]} 50. Nf6 {[%clk 0:00:09]}  a3 {[%clk 0:00:34]} 51. Nxd5+ {[%clk 0:00:03]}  exd5 {[%clk 0:00:35]} 52. Kf3 {[%clk 0:00:04]}  Be1 {[%clk 0:00:35]} 53. f5 {[%clk 0:00:04]}  Bxc3 {[%clk 0:00:35]} 54. Kf4 {[%clk 0:00:03]}  Bxe5+ {[%clk 0:00:32]} 55. Kxe5 {[%clk 0:00:00]}  c3 {[%clk 0:00:33]} 0-1


[Site "https://www.chess.com"]